[Event "TUR-ch Veterans 2020"]
[Site "Antalya-Belek"]
[Date "2020.01.21"]
[Round "4"]
[White "Muratoglu, Salih"]
[Black "Cicek, Cemil"]
[Result "1/2-1/2"]
[ECO "D37"]
[WhiteElo "1967"]
[BlackElo "1940"]
[Annotator "NA"]
[PlyCount "108"]
[EventDate "2020.01.19"]
[EventCountry "TUR"]
[SourceTitle "playchess.com"]
[Source "ChessBase"]
[SourceQuality "1"]
[TimeControl "5400+30"]

1. d4 {[%emt 0:00:30]} d5 {[%emt 0:00:30]} 2. Nf3 {[%emt 0:00:30]} Nf6 {[%emt 0:00:00]} 3. c4 {[%emt 0:00:00]} e6 {[%emt 0:00:00]} 4. e3 {[%emt 0:00:00]} Be7 {[%emt 0:00:30]} 5. Nc3 {[%emt 0:00:30]} O-O {[%emt 0:00:30]} 6. Be2 {[%emt 0:00:30]} b6 {[%emt 0:00:30]} 7. cxd5 {[%emt 0:00:30] D37: Queen's Gambit Declined: 5 Bf4} exd5 {[%emt 0:00:30]} 8. O-O {[%emt 0:00:30]} Be6 {[%emt 0:00:30]} (8... Bb7 9. Ne5 Nbd7 10. f4 Ne4 11. Nxe4 dxe4 12. Bc4 Nxe5 13. fxe5 Bd5 14. Qb3 c6 15. Bd2 f6 16. Rf5 Qd7 {1-0 (50) Sarana,A (2655)-Khademalsharieh,S (2491) Cap d'Agde 2019}) 9. Ne5 {[%emt 0:00:30]} c5 $146 {[%emt 0:00:30]} ({Predecessor:} 9... Nfd7 10. f4 f5 11. Bf3 Nxe5 12. dxe5 c6 13. Bd2 Na6 14. Rc1 Nc5 {1-0 (31) Urbanc,P (2224)-Skalic,A (1923) Radenci 2019}) 10. f4 {[%emt 0:00:30]} a6 {[%emt 0:01:30]} 11. Bf3 {[%emt 0:02:30]} cxd4 {[%emt 0:01:30]} 12. exd4 {[%emt 0:00:30]} Qd6 {[%emt 0:00:30]} 13. Qd3 {[%emt 0:02:30]} Nc6 {[%emt 0:01:30]} 14. a3 {[%emt 0:01:30]} Rfd8 {[%emt 0:02:30]} (14... Rae8 $142) 15. Be3 {[%emt 0:00:30]} g6 {[%emt 0:00:30]} 16. Rac1 {[%emt 0:03:30]} Bf5 {[%emt 0:02:30]} 17. Qe2 {[%emt 0:00:30]} Na5 {[%emt 0:01:30]} (17... Rac8 $142 18. Qxa6 Qe6 19. Qxb6 Nxe5 20. dxe5 d4 21. Qxe6 (21. Bxd4 Rxd4 22. Qxe6 Bxe6 $16) 21... fxe6) 18. g4 {[%emt 0:02:30]} Be4 {[%emt 0:02:30]} 19. Bxe4 {[%emt 0:02:30]} Nxe4 {[%emt 0:01:30]} 20. Nxe4 {[%emt 0:04:30]} dxe4 {[%emt 0:00:30]} 21. Qc2 {[%emt 0:01:30]} f6 {[%emt 0:03:30]} 22. Nc4 {[%emt 0:01:30]} Nxc4 {[%emt 0:00:30]} 23. Qxc4+ {[%emt 0:00:30]} Kg7 {[%emt 0:00:30]} 24. Qc6 {[%emt 0:01:30]} Qxc6 {[%emt 0:01:30]} 25. Rxc6 {[%emt 0:00:30]} Rd6 {[%emt 0:00:30]} 26. Rfc1 {[%emt 0:00:30]} Rad8 {[%emt 0:01:30]} 27. b4 {[%emt 0:04:30]} b5 {[%emt 0:00:30]} 28. Rc7 {[%emt 0:02:30]} R8d7 {[%emt 0:02:30]} 29. R7c6 {[%emt 0:01:30]} Kf7 {[%emt 0:00:00]} 30. Kg2 {[%emt 0:00:30]} f5 {[%emt 0:01:00]} 31. gxf5 {[%emt 0:03:30]} gxf5 {[%emt 0:00:00]} 32. R1c5 {[%emt 0:02:30]} Rg6+ {[%emt 0:01:00]} 33. Rxg6 {[%emt 0:00:30]} Bxc5 {[%emt 0:00:30]} 34. Rxa6 {[%emt 0:02:30]} Bxd4 {[%emt 0:01:30]} 35. Bxd4 {[%emt 0:01:30]} Rxd4 {[%emt 0:00:00]} 36. Ra5 {[%emt 0:00:00]} Rd2+ {[%emt 0:01:00]} 37. Kg3 {[%emt 0:00:00]} Kg6 {[%emt 0:00:30]} 38. Ra6+ {[%emt 0:01:30]} Kf7 {[%emt 0:00:30]} (38... Kh5 $17 39. h3 Rd3+ 40. Kg2 Rf3) 39. Ra5 {[%emt 0:00:30]} Ke6 {[%emt 0:00:30]} 40. Rxb5 {[%emt 0:01:30]} Rd3+ {[%emt 0:00:30]} 41. Kh4 {[%emt 0:02:30]} Rxa3 {[%emt 0:02:30] [#]} 42. Kg5 $1 {[%emt 0:00:30]} h6+ $18 {[%emt 0:01:30]} ({Black should try} 42... Rh3 $1 $14) 43. Kg6 {[%emt 0:01:30]} Rh3 {[%emt 0:00:30]} 44. Re5+ {[%emt 0:00:30]} Kd6 {[%emt 0:00:30]} 45. Kxf5 {[%emt 0:00:30]} e3 {[%emt 0:00:30]} 46. Kg4 {[%emt 0:00:30]} Rxh2 {[%emt 0:02:30]} 47. Rxe3 {[%emt 0:00:00]} h5+ {[%emt 0:01:30]} 48. Kg5 {[%emt 0:00:00]} h4 {[%emt 0:00:30]} 49. Kg4 {[%emt 0:03:30]} Rh1 {[%emt 0:00:30]} 50. f5 {[%emt 0:00:30]} Rf1 {[%emt 0:01:30]} 51. Re6+ {[%emt 0:01:30]} Kd5 {[%emt 0:00:30]} 52. Re3 {[%emt 0:00:30]} h3 {[%emt 0:00:30]} 53. Rxh3 {[%emt 0:01:30]} Ke4 {[%emt 0:00:30]} 54. Rb3 {[%emt 0:08:30]} Rf4+ {[%emt 0:00:30]} 1/2-1/2

[Event "TUR-ch Veterans 2020"]
[Site "Antalya-Belek"]
[Date "2020.01.21"]
[Round "4"]
[White "Guner, Bulent"]
[Black "Ozveren, Ali Bulent"]
[Result "1-0"]
[ECO "D93"]
[WhiteElo "1964"]
[BlackElo "1850"]
[Annotator "NA"]
[PlyCount "125"]
[EventDate "2020.01.19"]
[EventCountry "TUR"]
[SourceTitle "playchess.com"]
[Source "ChessBase"]
[SourceQuality "1"]
[TimeControl "5400+30"]

1. Nf3 {[%emt 0:00:30]} d5 {[%emt 0:00:30]} 2. d4 {[%emt 0:00:30]} Nf6 {[%emt 0:00:30]} 3. c4 {[%emt 0:00:30]} c6 {[%emt 0:00:00]} 4. Nc3 {[%emt 0:00:30]} g6 {[%emt 0:00:00]} 5. Bf4 {[%emt 0:01:30]} Bg7 {[%emt 0:00:30]} 6. e3 {[%emt 0:01:30]} O-O {[%emt 0:00:30]} 7. h3 {[%emt 0:00:00]} Nbd7 {[%emt 0:11:30]} (7... c5 $5) 8. Be2 {[%emt 0:02:00]} b6 {[%emt 0:06:30] D93: Grünfeld: 4 Nf3 Bg7 5 Bf4 0-0 6 e3} (8... dxc4 $11 {keeps the balance.} 9. Bxc4 c5 (9... b5 10. Be2 b4 11. Na4 Nd5 12. Bh2 Qa5 13. O-O Ba6 14. Bxa6 Qxa6 15. a3 Qb5 16. Rc1 bxa3 17. bxa3 {½-½ (40) Radovanovic,N (2398)-Pezelj,N (2452) Banja Vrujci 2017})) 9. O-O {[%emt 0:06:30]} Bb7 {[%emt 0:00:30]} 10. cxd5 {[%emt 0:00:30]} Nxd5 {[%emt 0:00:30]} 11. Nxd5 {[%emt 0:00:30]} cxd5 {[%emt 0:00:00]} 12. Rc1 {[%emt 0:03:30]} Rc8 {[%emt 0:00:00]} 13. Qd2 $146 {[%emt 0:03:30]} ({Predecessor:} 13. Qa4 a5 14. Bb5 Nb8 15. Ne5 Bxe5 16. Bxe5 {1-0 (33) Da Silva,A (2029)-Pereira Fo,H (1755) Natal 2016}) 13... e5 {[%emt 0:19:30]} 14. Rxc8 {[%emt 0:02:30]} Qxc8 {[%emt 0:00:30]} 15. dxe5 {[%emt 0:01:30]} Nc5 {[%emt 0:06:30]} 16. Rc1 {[%emt 0:03:30]} Qd7 {[%emt 0:00:30]} 17. Nd4 {[%emt 0:03:30]} Ne4 {[%emt 0:09:30]} (17... Rc8 $16 18. Bg4 Ne6 19. Rxc8+ Bxc8) 18. Qd1 {[%emt 0:01:30]} Rc8 {[%emt 0:00:30]} 19. Bg4 $16 {[%emt 0:03:30]} Rxc1 {[%emt 0:00:30]} 20. Qxc1 {[%emt 0:00:00]} Qe7 {[%emt 0:01:30]} 21. Bc8 {[%emt 0:08:00]} Nc5 {[%emt 0:03:30]} 22. Bxb7 {[%emt 0:02:30]} Qxb7 {[%emt 0:00:00]} 23. b4 {[%emt 0:04:30]} Nd3 {[%emt 0:10:00]} 24. Qc6 {[%emt 0:01:30]} Qxc6 {[%emt 0:00:30]} 25. Nxc6 {[%emt 0:00:30]} Bf8 {[%emt 0:00:00]} 26. b5 {[%emt 0:00:30]} Nc1 {[%emt 0:03:00]} 27. a4 {[%emt 0:11:30]} Ne2+ {[%emt 0:00:30]} 28. Kf1 {[%emt 0:00:30]} Nc3 {[%emt 0:00:00]} 29. Nxa7 {[%emt 0:00:00]} Nxa4 {[%emt 0:00:00]} 30. Ke2 {[%emt 0:02:00]} Nc5 {[%emt 0:07:30]} 31. g4 {[%emt 0:05:30]} Ne6 {[%emt 0:01:09]} 32. Bg3 {[%emt 0:02:30]} Bc5 {[%emt 0:03:21]} 33. f4 {[%emt 0:00:30]} Kf8 {[%emt 0:00:28]} 34. Kd3 {[%emt 0:05:30]} Ke8 {[%emt 0:00:29]} 35. e4 {[%emt 0:04:30]} dxe4+ {[%emt 0:01:45]} 36. Kxe4 {[%emt 0:01:20]} Kd7 {[%emt 0:00:03]} 37. h4 {[%emt 0:01:40]} Ng7 {[%emt 0:05:21]} 38. Nc6 {[%emt 0:09:15]} h5 {[%emt 0:00:29]} 39. gxh5 {[%emt 0:02:04]} Nxh5 {[%emt 0:00:19]} 40. Be1 {[%emt 0:00:02]} Ng7 {[%emt 0:00:46]} 41. Nb4 {[%emt 0:03:55]} Ke6 {[%emt 0:03:04]} 42. Nd5 {[%emt 0:00:25]} Nf5 {[%emt 0:02:21]} 43. Nc7+ {[%emt 0:00:07]} Kd7 {[%emt 0:00:00]} 44. Na6 {[%emt 0:00:06]} Bg1 {[%emt 0:01:21]} 45. h5 {[%emt 0:00:14]} Ke6 {[%emt 0:01:21]} 46. Nc7+ {[%emt 0:00:55]} Kd7 {[%emt 0:00:09]} 47. Nd5 {[%emt 0:00:08]} Bc5 {[%emt 0:01:34]} 48. hxg6 {[%emt 0:01:30]} fxg6 {[%emt 0:00:09]} 49. Bc3 {[%emt 0:01:24]} Ke6 {[%emt 0:01:26]} 50. Nb4 {[%emt 0:01:03]} Kd7 {[%emt 0:01:08]} 51. Nc6 {[%emt 0:00:31]} Kc7 {[%emt 0:02:56]} 52. Nd4 {[%emt 0:00:54]} Bxd4 {[%emt 0:01:03]} 53. Bxd4 {[%emt 0:00:03]} Ne7 {[%emt 0:00:00]} 54. Be3 {[%emt 0:00:57]} Nc8 {[%emt 0:00:36]} 55. Kf3 {[%emt 0:01:17]} Na7 {[%emt 0:00:14]} 56. Kg4 {[%emt 0:00:16]} Nxb5 {[%emt 0:00:10]} 57. Kg5 {[%emt 0:00:12]} Nc3 {[%emt 0:00:40]} 58. Kxg6 {[%emt 0:00:53]} Kd7 {[%emt 0:00:50]} 59. Kf7 {[%emt 0:01:14]} Nd5 {[%emt 0:00:28]} 60. Bd2 {[%emt 0:00:21]} Nc7 {[%emt 0:00:39]} 61. f5 {[%emt 0:00:26]} b5 {[%emt 0:00:39]} 62. e6+ {[%emt 0:00:31]} Kc8 {[%emt 0:00:13]} 63. f6 {[%emt 0:00:20]} 1-0

[Event "TUR-ch Veterans 2020"]
[Site "Antalya-Belek"]
[Date "2020.01.21"]
[Round "4"]
[White "Ozmen, Halil Nejat"]
[Black "Altin, Halis"]
[Result "1/2-1/2"]
[ECO "E12"]
[WhiteElo "1789"]
[BlackElo "1551"]
[Annotator "NA"]
[PlyCount "53"]
[EventDate "2020.01.19"]
[EventCountry "TUR"]
[SourceTitle "playchess.com"]
[Source "ChessBase"]
[SourceQuality "1"]
[TimeControl "5400+30"]

1. d4 {[%emt 0:00:30]} Nf6 {[%emt 0:00:30]} 2. Bg5 {[%emt 0:00:30]} e6 {[%emt 0:00:00]} 3. Nf3 {[%emt 0:00:00]} Be7 {[%emt 0:00:00]} 4. e3 {[%emt 0:00:00]} d5 {[%emt 0:00:30]} 5. c4 {[%emt 0:00:00]} Nbd7 {[%emt 0:00:30]} 6. Nc3 {[%emt 0:00:00]} O-O {[%emt 0:04:30]} 7. Bd3 {[%emt 0:00:30]} dxc4 {[%emt 0:05:30]} 8. Bxc4 {[%emt 0:00:00]} b6 {[%emt 0:00:30]} 9. O-O {[%emt 0:00:00]} Bb7 {[%emt 0:01:30]} 10. Qe2 {[%emt 0:00:30]} Rc8 {[%emt 0:00:30]} 11. Rfd1 {[%emt 0:00:30]} Ne4 {[%emt 0:02:30]} 12. Bxe7 {[%emt 0:00:30]} Qxe7 {[%emt 0:00:30]} 13. Ba6 {[%emt 0:00:30]} Nxc3 {[%emt 0:01:30]} 14. bxc3 {[%emt 0:00:00]} Bxf3 {[%emt 0:02:30]} 15. Qxf3 {[%emt 0:00:00]} Rcd8 {[%emt 0:00:30]} 16. a4 {[%emt 0:00:30]} c5 {[%emt 0:02:30]} 17. a5 {[%emt 0:00:30]} cxd4 {[%emt 0:02:30]} 18. cxd4 {[%emt 0:00:00]} Nf6 {[%emt 0:03:30]} 19. axb6 {[%emt 0:03:00]} axb6 {[%emt 0:00:30]} 20. Rdb1 {[%emt 0:00:30]} Qd6 {[%emt 0:01:30]} 21. h3 {[%emt 0:00:30]} Nd5 {[%emt 0:07:30]} 22. Bb7 {[%emt 0:06:30]} Qc7 {[%emt 0:06:30]} 23. Bxd5 {[%emt 0:02:30]} Rxd5 {[%emt 0:00:30]} 24. Rb3 {[%emt 0:10:30]} g6 {[%emt 0:12:30]} 25. Rab1 {[%emt 0:00:30]} Rb8 {[%emt 0:00:30]} 26. Qe2 {[%emt 0:03:30]} Ra5 {[%emt 0:03:30]} 27. Qd2 {[%emt 0:01:30]} 1/2-1/2

[Event "TUR-ch Veterans 2020"]
[Site "Antalya-Belek"]
[Date "2020.01.21"]
[Round "4"]
[White "Sedef, Emin"]
[Black "Yilmaz, Turhan"]
[Result "0-1"]
[ECO "A48"]
[WhiteElo "1619"]
[BlackElo "2132"]
[Annotator "ChessBase"]
[PlyCount "88"]
[EventDate "2020.01.19"]
[EventCountry "TUR"]
[SourceTitle "playchess.com"]
[Source "ChessBase"]
[SourceQuality "1"]
[TimeControl "5400+30"]

1. d4 {[%emt 0:00:30]} Nf6 {[%emt 0:00:30]} 2. Nf3 {[%emt 0:00:30]} g6 {[%emt 0:00:00]} 3. Bg5 {[%emt 0:00:30]} h6 {[%emt 0:00:00]} 4. Bxf6 {[%emt 0:08:30]} exf6 {[%emt 0:00:00]} 5. Nbd2 {[%emt 0:00:30]} f5 {[%emt 0:00:00]} 6. e3 {[%emt 0:00:30]} Bg7 {[%emt 0:00:30]} 7. Bd3 {[%emt 0:00:30]} O-O {[%emt 0:00:00]} 8. O-O {[%emt 0:00:30]} d6 {[%emt 0:00:00]} 9. c3 {[%emt 0:00:30]} c5 {[%emt 0:00:30]} 10. a3 {[%emt 0:02:30]} Qc7 {[%emt 0:00:30]} 11. Rc1 {[%emt 0:00:30]} Nd7 {[%emt 0:00:30]} 12. b4 {[%emt 0:00:30]} b6 {[%emt 0:00:00]} 13. Qb3 {[%emt 0:01:30]} Bb7 {[%emt 0:00:00]} 14. d5 {[%emt 0:02:30]} Nf6 {[%emt 0:01:30]} 15. c4 {[%emt 0:00:30]} Rfe8 {[%emt 0:00:30]} 16. h3 {[%emt 0:01:30]} Re7 {[%emt 0:00:30]} 17. Qb1 {[%emt 0:02:30]} Rae8 {[%emt 0:00:30]} 18. Rfe1 {[%emt 0:01:30]} Ne4 {[%emt 0:00:30]} 19. Bxe4 {[%emt 0:00:00]} fxe4 {[%emt 0:00:00]} 20. Nh2 {[%emt 0:01:00]} Bc8 {[%emt 0:00:00]} 21. b5 {[%emt 0:01:30]} h5 {[%emt 0:00:30]} 22. a4 {[%emt 0:00:30]} h4 {[%emt 0:00:30]} 23. Qc2 {[%emt 0:01:30]} f5 {[%emt 0:00:30]} 24. Qd1 {[%emt 0:00:30]} Bf6 {[%emt 0:01:30]} 25. f4 {[%emt 0:08:30]} exf3 {[%emt 0:06:30]} 26. Qxf3 {[%emt 0:01:30]} Rxe3 {[%emt 0:01:30]} 27. Rxe3 {[%emt 0:00:30]} Rxe3 {[%emt 0:00:00]} 28. Qf1 {[%emt 0:00:30]} Qe7 {[%emt 0:00:00]} 29. Ndf3 {[%emt 0:00:30]} g5 {[%emt 0:03:30]} 30. Re1 {[%emt 0:00:30]} g4 {[%emt 0:00:30]} 31. Rxe3 {[%emt 0:02:30]} Qxe3+ {[%emt 0:00:30]} 32. Kh1 {[%emt 0:00:00]} gxf3 {[%emt 0:00:00]} 33. Nxf3 {[%emt 0:00:00]} Bd7 {[%emt 0:00:00]} 34. Qb1 {[%emt 0:00:30]} Kg7 {[%emt 0:02:30]} 35. a5 {[%emt 0:01:30]} Qc3 {[%emt 0:01:30]} 36. axb6 {[%emt 0:01:30]} axb6 {[%emt 0:00:30]} 37. Qa2 {[%emt 0:00:30]} Qa1+ {[%emt 0:01:30]} 38. Qxa1 {[%emt 0:00:00]} Bxa1 {[%emt 0:00:00]} 39. Nxh4 {[%emt 0:00:00]} f4 {[%emt 0:00:00]} 40. Kg1 {[%emt 0:02:30]} Kf6 {[%emt 0:00:30]} 41. Kf2 {[%emt 0:01:30]} Ke5 {[%emt 0:00:00]} 42. Kf3 {[%emt 0:00:00]} Bf5 {[%emt 0:00:00]} 43. Nxf5 {[%emt 0:01:00]} Kxf5 {[%emt 0:00:30]} 44. h4 {[%emt 0:00:30]} Be5 {[%emt 0:04:30]} 0-1

[Event "TUR-ch Veterans 2020"]
[Site "Antalya-Belek"]
[Date "2020.01.21"]
[Round "4"]
[White "Atas, Remzi"]
[Black "Yuksel, Mustafa"]
[Result "1/2-1/2"]
[ECO "E11"]
[WhiteElo "1498"]
[BlackElo "2004"]
[Annotator "NA"]
[PlyCount "55"]
[EventDate "2020.01.19"]
[EventCountry "TUR"]
[SourceTitle "playchess.com"]
[Source "ChessBase"]
[SourceQuality "1"]
[TimeControl "5400+30"]

1. d4 {[%emt 0:00:30]} Nf6 {[%emt 0:00:30]} 2. Nf3 {[%emt 0:01:30]} e6 {[%emt 0:00:30]} 3. c4 {[%emt 0:00:00]} Bb4+ {[%emt 0:00:30]} 4. Bd2 {[%emt 0:00:00]} Qe7 {[%emt 0:00:00]} 5. Nc3 {[%emt 0:00:30]} Bxc3 {[%emt 0:01:00]} 6. Bxc3 {[%emt 0:01:30]} Ne4 {[%emt 0:00:00]} 7. Qc2 {[%emt 0:01:30]} f5 {[%emt 0:00:00] E11: Bogo-Indian} (7... Nxc3 8. Qxc3 d6 9. g3 O-O 10. Bg2 Re8 11. O-O e5 12. dxe5 dxe5 13. Nd2 Nd7 14. b4 Nf6 15. Ne4 Nxe4 16. Bxe4 c6 17. Rfd1 Bg4 18. Rd2 {0-1 (27) Sargissian,G (2671)-Tkachiev,V (2649) Khanty-Mansiysk 2013}) 8. e3 {[%emt 0:01:30]} b6 {[%emt 0:00:30]} 9. g3 {[%emt 0:02:30]} Bb7 {[%emt 0:00:30]} 10. Bg2 {[%emt 0:00:00]} Nxc3 {[%emt 0:00:00]} 11. Qxc3 {[%emt 0:00:00]} d6 {[%emt 0:00:00]} 12. O-O $146 {[%emt 0:02:30]} ({Predecessor:} 12. h4 Nd7 13. O-O-O Be4 14. Ne1 Bxg2 15. Nxg2 {0-1 (40) Michalek,B (2004)-Kozlova,O (2254) Germany 2009}) 12... O-O {[%emt 0:02:30]} 13. Rfe1 {[%emt 0:01:30]} Nd7 {[%emt 0:00:00]} 14. Rad1 {[%emt 0:00:30]} Be4 {[%emt 0:01:00]} 15. Nd2 {[%emt 0:03:30]} Bxg2 {[%emt 0:00:30]} 16. Kxg2 {[%emt 0:00:00]} e5 {[%emt 0:01:30]} 17. f4 {[%emt 0:01:00]} e4 {[%emt 0:06:30]} 18. Rh1 {[%emt 0:04:30]} c6 {[%emt 0:03:30]} 19. Rdg1 {[%emt 0:01:30]} d5 {[%emt 0:02:30]} 20. Kf2 {[%emt 0:00:30]} Rac8 {[%emt 0:07:30]} 21. Rc1 {[%emt 0:10:30]} Nf6 {[%emt 0:10:30]} 22. h3 {[%emt 0:00:30]} Rfd8 {[%emt 0:00:30]} 23. b3 {[%emt 0:01:30]} Kh8 {[%emt 0:07:30]} 24. a4 {[%emt 0:05:30]} a5 $11 {[%emt 0:03:30]} (24... c5 $17 25. Rhe1 cxd4 26. exd4 Kg8) 25. c5 {[%emt 0:00:30]} Qa7 {[%emt 0:06:30]} 26. cxb6 {[%emt 0:01:30]} Qxb6 {[%emt 0:02:30]} 27. Qc5 {[%emt 0:01:30]} Qa6 {[%emt 0:00:30]} 28. Rc3 {[%emt 0:03:30]} 1/2-1/2

[Event "TUR-ch Veterans 2020"]
[Site "Antalya-Belek"]
[Date "2020.01.21"]
[Round "4"]
[White "Odabasi, Nail"]
[Black "Topaloglu, Hayati"]
[Result "1/2-1/2"]
[ECO "D00"]
[WhiteElo "1458"]
[BlackElo "1750"]
[Annotator "NA"]
[PlyCount "63"]
[EventDate "2020.01.19"]
[EventCountry "TUR"]
[SourceTitle "playchess.com"]
[Source "ChessBase"]
[SourceQuality "1"]
[TimeControl "5400+30"]

1. d4 {[%emt 0:00:30]} d5 {[%emt 0:00:30]} 2. Nc3 {[%emt 0:00:30]} Nf6 {[%emt 0:00:30]} 3. Bf4 {[%emt 0:00:30]} e6 {[%emt 0:00:30]} 4. e3 {[%emt 0:00:30]} c6 {[%emt 0:00:30]} 5. Bd3 {[%emt 0:01:30]} Bb4 {[%emt 0:00:30]} 6. h3 {[%emt 0:00:30]} Nbd7 {[%emt 0:00:30]} 7. Nge2 {[%emt 0:00:30]} a6 {[%emt 0:00:30]} 8. O-O {[%emt 0:00:30]} Qe7 {[%emt 0:00:30]} 9. a3 {[%emt 0:01:30]} Bd6 {[%emt 0:01:30]} 10. e4 {[%emt 0:05:30]} dxe4 {[%emt 0:00:30]} 11. Nxe4 {[%emt 0:00:30]} Nxe4 {[%emt 0:00:30]} 12. Bxe4 {[%emt 0:00:30]} Nf6 {[%emt 0:00:30]} 13. Bd3 {[%emt 0:05:30]} Bxf4 {[%emt 0:01:30]} 14. Nxf4 {[%emt 0:00:00]} Qd6 {[%emt 0:00:30]} 15. Ne2 {[%emt 0:01:00]} b6 {[%emt 0:01:30]} 16. c3 {[%emt 0:00:30]} Bb7 {[%emt 0:00:30]} 17. Re1 {[%emt 0:03:30]} O-O {[%emt 0:00:00]} 18. Ng3 {[%emt 0:01:30]} g6 {[%emt 0:00:00]} 19. Qc2 {[%emt 0:00:30]} Rad8 {[%emt 0:02:30]} 20. Rad1 {[%emt 0:01:30]} Rfe8 {[%emt 0:01:30]} 21. Ne4 {[%emt 0:01:30]} Nxe4 {[%emt 0:02:30]} 22. Bxe4 {[%emt 0:00:30]} Kg7 {[%emt 0:01:30]} 23. Bf3 {[%emt 0:04:30]} Re7 {[%emt 0:00:30]} 24. Qe2 {[%emt 0:01:30]} f6 {[%emt 0:01:30]} 25. c4 {[%emt 0:02:30]} Qc7 {[%emt 0:02:30]} 26. d5 {[%emt 0:03:30]} cxd5 {[%emt 0:01:30]} 27. cxd5 {[%emt 0:00:00]} e5 {[%emt 0:02:30]} 28. d6 {[%emt 0:05:00]} Rxd6 {[%emt 0:00:30]} 29. Rxd6 {[%emt 0:01:30]} Qxd6 {[%emt 0:00:30]} 30. Bxb7 {[%emt 0:00:00]} Rxb7 {[%emt 0:00:30]} 31. Qxa6 {[%emt 0:00:00]} Rd7 {[%emt 0:03:30]} 32. Qe2 {[%emt 0:00:30]} 1/2-1/2

[Event "TUR-ch Veterans 2020"]
[Site "Antalya-Belek"]
[Date "2020.01.22"]
[Round "5"]
[White "Yilmaz, Turhan"]
[Black "Tofan, Ibrahim"]
[Result "1-0"]
[ECO "A05"]
[WhiteElo "2132"]
[BlackElo "2082"]
[Annotator "NA"]
[PlyCount "137"]
[EventDate "2020.01.19"]
[EventCountry "TUR"]
[SourceTitle "playchess.com"]
[Source "ChessBase"]
[SourceQuality "1"]
[TimeControl "5400+30"]

1. e4 {[%emt 0:00:30]} e5 {[%emt 0:00:30]} 2. Nf3 {[%emt 0:00:00]} Nf6 {[%emt 0:00:30]} 3. Nc3 {[%emt 0:00:00]} Nc6 {[%emt 0:00:30]} 4. g3 {[%emt 0:00:00]} g6 {[%emt 0:00:30]} 5. Bg2 {[%emt 0:00:00]} Bg7 {[%emt 0:00:00]} 6. O-O {[%emt 0:00:30]} O-O {[%emt 0:00:00]} 7. d3 {[%emt 0:00:30]} d6 {[%emt 0:02:30]} 8. h3 {[%emt 0:00:30]} Be6 {[%emt 0:00:30] A05: Réti Opening: 1 Nf3 Nf6} (8... Ne8 9. Nd5 Be6 10. c3 Qc8 11. Kh2 h6 12. d4 exd4 13. Nxd4 Bxd5 14. exd5 Nxd4 15. cxd4 c5 16. dxc6 bxc6 {1-0 (91) Safarli,E (2660)-Amin,B (2652) Tromsoe 2013}) 9. Ng5 {[%emt 0:00:30]} Qd7 {[%emt 0:05:30]} 10. Nxe6 {[%emt 0:00:30]} fxe6 {[%emt 0:01:30]} 11. Be3 $146 {[%emt 0:00:30]} ({Predecessor:} 11. Bd2 Rf7 12. h4 Qe7 13. Bh3 h6 14. Qe2 Nd4 15. Qd1 {1-0 (36) Sousa,R-Ramos,D Barreiro 2003}) 11... Nd4 {[%emt 0:02:30]} 12. Ne2 {[%emt 0:02:30]} Nxe2+ {[%emt 0:04:30]} 13. Qxe2 {[%emt 0:00:00]} Nh5 {[%emt 0:03:30]} 14. Rad1 {[%emt 0:01:00]} Qf7 {[%emt 0:02:30]} 15. Qg4 {[%emt 0:00:30]} Rae8 {[%emt 0:03:30]} 16. c3 {[%emt 0:00:30]} b6 {[%emt 0:00:30]} 17. d4 {[%emt 0:01:30]} exd4 {[%emt 0:01:30]} 18. cxd4 {[%emt 0:00:30]} c5 {[%emt 0:01:30]} 19. b3 {[%emt 0:01:30]} Rc8 {[%emt 0:05:30]} 20. dxc5 {[%emt 0:02:30]} dxc5 {[%emt 0:00:30]} 21. Rd6 {[%emt 0:00:30]} Rfe8 {[%emt 0:02:30]} 22. Rfd1 {[%emt 0:00:30]} Bf8 {[%emt 0:04:30]} 23. R6d2 {[%emt 0:11:30]} c4 {[%emt 0:07:30]} 24. bxc4 {[%emt 0:00:30]} Rxc4 {[%emt 0:01:30]} (24... Nf6 $16 25. Qf3 e5) 25. Qe2 {[%emt 0:00:30]} Rc7 {[%emt 0:00:30]} 26. Qb5 {[%emt 0:02:30]} Ng7 $16 {[%emt 0:05:30]} 27. h4 {[%emt 0:18:30]} Bc5 {[%emt 0:03:30]} 28. Rd7 {[%emt 0:02:30]} Rxd7 {[%emt 0:00:30]} 29. Rxd7 {[%emt 0:00:00]} Re7 {[%emt 0:00:30]} 30. Rd8+ {[%emt 0:05:00]} Re8 {[%emt 0:00:00]} 31. Rd7 {[%emt 0:02:30]} Re7 {[%emt 0:00:00]} 32. Rxe7 {[%emt 0:00:00]} Qxe7 {[%emt 0:00:30]} 33. Bxc5 {[%emt 0:00:00]} bxc5 {[%emt 0:00:30]} 34. Qb8+ {[%emt 0:02:30]} Kf7 {[%emt 0:03:30]} 35. Bf1 {[%emt 0:02:30]} Ne8 {[%emt 0:00:30]} 36. Qf4+ {[%emt 0:06:30]} Qf6 {[%emt 0:00:30]} 37. Qb8 {[%emt 0:01:30]} Qe7 {[%emt 0:00:30]} 38. Qb5 {[%emt 0:00:30]} Qc7 {[%emt 0:04:30]} 39. Qe2 {[%emt 0:02:30]} Nd6 {[%emt 0:04:30]} 40. Qf3+ {[%emt 0:00:30]} Ke7 {[%emt 0:03:30]} 41. Qf4 {[%emt 0:01:30]} c4 {[%emt 0:07:30]} 42. e5 {[%emt 0:00:30]} Nf7 {[%emt 0:00:00]} 43. Bxc4 {[%emt 0:02:30]} Qxe5 {[%emt 0:00:00]} 44. Qd2 {[%emt 0:01:30]} Nd6 {[%emt 0:01:30]} 45. Bb3 {[%emt 0:00:00]} Nf5 {[%emt 0:01:34]} 46. Qb4+ {[%emt 0:04:00]} Qd6 {[%emt 0:01:14]} 47. Qe4 {[%emt 0:00:30]} Nd4 {[%emt 0:04:32]} 48. Bc4 {[%emt 0:00:30]} Kf6 {[%emt 0:01:14]} 49. Qa8 {[%emt 0:02:30]} Nf5 {[%emt 0:04:31]} 50. Qxa7 {[%emt 0:04:30]} Nxg3 {[%emt 0:00:33]} 51. fxg3 {[%emt 0:03:49]} Qxg3+ {[%emt 0:00:02]} 52. Kf1 {[%emt 0:00:01]} Qh3+ {[%emt 0:00:12]} 53. Ke2 {[%emt 0:01:51]} Qg4+ {[%emt 0:00:21]} 54. Kd3 {[%emt 0:00:13]} Qd1+ {[%emt 0:00:42]} 55. Kc3 {[%emt 0:00:25]} Qe1+ {[%emt 0:00:17]} 56. Kb3 {[%emt 0:04:29]} Qg3+ {[%emt 0:01:25]} 57. Kb4 {[%emt 0:00:38]} Qe1+ {[%emt 0:00:32]} 58. Kb5 {[%emt 0:01:25]} Qxh4 {[%emt 0:00:16]} 59. Qc5 {[%emt 0:00:31]} Qe4 {[%emt 0:01:14]} 60. a4 {[%emt 0:01:06]} Qb1+ {[%emt 0:02:36]} 61. Kc6 {[%emt 0:00:31]} Qb8 {[%emt 0:02:15]} 62. a5 {[%emt 0:04:16]} g5 {[%emt 0:00:09]} 63. a6 {[%emt 0:00:45]} Qa8+ {[%emt 0:00:59]} 64. Kc7 {[%emt 0:01:02]} g4 {[%emt 0:00:11]} 65. Qf2+ {[%emt 0:00:39]} Kg5 {[%emt 0:00:27]} 66. a7 {[%emt 0:00:26]} e5 {[%emt 0:01:49]} 67. Qc5 {[%emt 0:01:05]} Qh8 {[%emt 0:03:32]} 68. Qe7+ {[%emt 0:00:50]} Kf4 {[%emt 0:00:48]} 69. Bd5 {[%emt 0:00:13]} 1-0